[Event "4th Baskent University Open 2019"]
[Site "Ankara"]
[Date "2019.06.18"]
[Round "3"]
[White "Dolek, Gokalp Deniz"]
[Black "Kurt, Emre"]
[Result "1-0"]
[ECO "B92"]
[WhiteElo "1352"]
[BlackElo "1681"]
[Annotator "NA"]
[PlyCount "95"]
[EventDate "2019.06.18"]
[EventType "swiss"]
[EventCountry "TUR"]
[SourceTitle "playchess.com"]
[Source "ChessBase"]
[SourceQuality "1"]
[TimeControl "5400+30"]

1. e4 {[%emt 0:00:30]} c5 {[%emt 0:00:30]} 2. Nf3 {[%emt 0:00:00]} d6 {[%emt 0:00:00]} 3. d4 {[%emt 0:00:00]} cxd4 {[%emt 0:00:00]} 4. Nxd4 {[%emt 0:00:30]} Nf6 {[%emt 0:00:00]} 5. Nc3 {[%emt 0:00:30]} a6 {[%emt 0:00:00]} 6. Be2 {[%emt 0:00:00]} e5 {[%emt 0:00:30]} 7. Nb3 {[%emt 0:00:00]} Be7 {[%emt 0:00:00]} 8. Be3 {[%emt 0:01:30]} Be6 {[%emt 0:00:00]} 9. O-O {[%emt 0:00:30]} Nbd7 {[%emt 0:01:30]} 10. Qd2 {[%emt 0:01:30]} O-O {[%emt 0:05:30]} 11. Rad1 {[%emt 0:06:30]} Qc7 {[%emt 0:03:30]} 12. Nd5 {[%emt 0:08:30]} Bxd5 {[%emt 0:02:30]} 13. exd5 {[%emt 0:00:30]} Ne4 {[%emt 0:08:30]} 14. Qb4 {[%emt 0:01:30]} f5 {[%emt 0:02:30]} 15. c4 {[%emt 0:13:30]} f4 {[%emt 0:11:30]} 16. Bc1 {[%emt 0:00:30]} b6 {[%emt 0:11:30]} 17. Bf3 {[%emt 0:18:30]} Nef6 {[%emt 0:02:30]} 18. Rfe1 {[%emt 0:01:30]} g5 {[%emt 0:04:30]} 19. Nd4 {[%emt 0:01:30]} Nc5 {[%emt 0:06:30]} 20. Nc6 {[%emt 0:01:30]} Rae8 {[%emt 0:05:30]} 21. b3 {[%emt 0:06:30]} h5 {[%emt 0:03:30]} 22. Bb2 {[%emt 0:03:30]} Bd8 {[%emt 0:03:30]} 23. Qd2 {[%emt 0:04:30]} g4 {[%emt 0:01:30]} 24. Be2 {[%emt 0:00:30]} Nfe4 {[%emt 0:12:10]} 25. Qc2 {[%emt 0:01:30]} a5 {[%emt 0:12:40]} 26. a3 {[%emt 0:00:30]} Nxf2 {[%emt 0:01:01]} 27. Kxf2 {[%emt 0:00:30]} Bh4+ {[%emt 0:00:00]} 28. Kg1 {[%emt 0:00:00]} Bxe1 {[%emt 0:00:12]} 29. Rxe1 {[%emt 0:00:00]} Qg7 {[%emt 0:00:08]} 30. b4 {[%emt 0:00:00]} f3 {[%emt 0:00:42]} 31. bxc5 {[%emt 0:02:00]} f2+ {[%emt 0:00:30]} 32. Kf1 {[%emt 0:00:00]} fxe1=Q+ {[%emt 0:00:00]} 33. Kxe1 {[%emt 0:00:00]} bxc5 {[%emt 0:00:28]} 34. Bc1 {[%emt 0:00:30]} g3 {[%emt 0:00:30]} 35. h3 {[%emt 0:00:30]} Rf2 {[%emt 0:00:30]} 36. Qe4 {[%emt 0:00:30]} Ref8 {[%emt 0:00:30]} 37. Be3 {[%emt 0:00:30]} R2f5 {[%emt 0:00:30]} 38. Kd2 {[%emt 0:00:30]} Qb7 {[%emt 0:00:30]} 39. Kc3 {[%emt 0:00:30]} a4 {[%emt 0:00:30]} 40. Bd1 {[%emt 0:00:30]} Kg7 {[%emt 0:00:30]} 41. Bc2 {[%emt 0:00:30]} R8f6 {[%emt 0:00:30]} 42. Nd8 {[%emt 0:07:30]} Qa8 {[%emt 0:02:52]} 43. Ne6+ {[%emt 0:01:30]} Kg8 {[%emt 0:00:30]} 44. Qh4 {[%emt 0:00:30]} Qa5+ {[%emt 0:00:30]} 45. Kb2 {[%emt 0:00:30]} Qe1 {[%emt 0:00:00]} 46. Bxf5 {[%emt 0:00:30]} Rxf5 {[%emt 0:00:13]} 47. Qd8+ {[%emt 0:00:00]} Kh7 {[%emt 0:01:28]} 48. Qe7+ {[%emt 0:00:00]} 1-0

[Event "4th Baskent University Open 2019"]
[Site "Ankara"]
[Date "2019.06.19"]
[Round "4"]
[White "Nagy, Gabor"]
[Black "Darban, Morteza"]
[Result "1/2-1/2"]
[ECO "A40"]
[WhiteElo "2471"]
[BlackElo "2264"]
[Annotator "ChessBase"]
[PlyCount "74"]
[EventDate "2019.06.18"]
[EventType "swiss"]
[EventCountry "TUR"]
[SourceTitle "playchess.com"]
[Source "ChessBase"]
[SourceQuality "1"]
[TimeControl "5400+30"]

1. Nf3 {[%emt 0:00:30]} c5 {[%emt 0:01:30]} 2. c4 {[%emt 0:00:30]} g6 {[%emt 0:00:30]} 3. d4 {[%emt 0:00:30]} Bg7 {[%emt 0:00:00]} 4. dxc5 {[%emt 0:01:30]} Na6 {[%emt 0:01:00]} 5. g3 {[%emt 0:00:30]} Nxc5 {[%emt 0:02:30]} 6. Bg2 {[%emt 0:00:30]} Nf6 {[%emt 0:01:30]} 7. Nc3 {[%emt 0:00:30]} b6 {[%emt 0:09:30]} 8. e4 {[%emt 0:07:30]} Bb7 {[%emt 0:01:30]} 9. e5 {[%emt 0:00:30]} Ng4 {[%emt 0:00:00]} 10. O-O {[%emt 0:02:30]} Nxe5 {[%emt 0:01:00]} 11. Nxe5 {[%emt 0:00:30]} Bxe5 {[%emt 0:02:30]} 12. Bxb7 {[%emt 0:01:30]} Nxb7 {[%emt 0:00:00]} 13. Bh6 {[%emt 0:01:30]} Bxc3 {[%emt 0:04:00]} 14. bxc3 {[%emt 0:00:30]} Nc5 {[%emt 0:00:30]} 15. Re1 {[%emt 0:01:30]} Ne6 {[%emt 0:03:30]} 16. a4 {[%emt 0:02:30]} Rc8 {[%emt 0:02:30]} 17. Qd3 {[%emt 0:02:30]} Rc5 {[%emt 0:01:30]} 18. a5 {[%emt 0:04:30]} bxa5 {[%emt 0:02:30]} 19. Rab1 {[%emt 0:00:30]} Rh5 {[%emt 0:10:30]} 20. Qe3 {[%emt 0:00:30]} f6 {[%emt 0:08:30]} 21. Qxa7 {[%emt 0:01:30]} Kf7 {[%emt 0:00:00]} 22. Be3 {[%emt 0:00:30]} Re8 {[%emt 0:10:00]} 23. Rb7 {[%emt 0:02:30]} Nf8 {[%emt 0:00:30]} 24. Reb1 {[%emt 0:02:30]} Qa8 {[%emt 0:07:30]} 25. Qb6 {[%emt 0:00:00]} a4 {[%emt 0:01:30]} 26. c5 {[%emt 0:00:00]} Rc8 {[%emt 0:03:30]} 27. Qb5 {[%emt 0:06:30]} a3 {[%emt 0:07:06]} 28. Qb3+ {[%emt 0:01:30]} Kg7 {[%emt 0:00:04]} 29. Ra1 {[%emt 0:00:30]} Qa6 {[%emt 0:01:06]} 30. Rxa3 {[%emt 0:00:30]} Qe2 {[%emt 0:02:22]} 31. Ra2 {[%emt 0:00:30]} Qf3 {[%emt 0:00:29]} 32. Rd2 {[%emt 0:01:30]} Re5 {[%emt 0:01:20]} 33. c4 {[%emt 0:02:30]} g5 {[%emt 0:02:52]} 34. Rd5 {[%emt 0:01:30]} Ra8 {[%emt 0:01:02]} 35. Rd1 {[%emt 0:02:30]} Ra3 {[%emt 0:08:29]} 36. Qxa3 {[%emt 0:00:30]} Qxd1+ {[%emt 0:00:00]} 37. Kg2 {[%emt 0:00:30]} g4 {[%emt 0:00:00]} 1/2-1/2

[Event "4th Baskent University Open 2019"]
[Site "Ankara"]
[Date "2019.06.19"]
[Round "4"]
[White "Pacher, Milan"]
[Black "Yilmaz, Goktan"]
[Result "0-1"]
[ECO "B90"]
[WhiteElo "2434"]
[BlackElo "2155"]
[Annotator "NA"]
[PlyCount "134"]
[EventDate "2019.06.18"]
[EventType "swiss"]
[EventCountry "TUR"]
[SourceTitle "playchess.com"]
[Source "ChessBase"]
[SourceQuality "1"]
[TimeControl "5400+30"]

1. e4 {[%emt 0:00:30]} c5 {[%emt 0:00:30]} 2. Nf3 {[%emt 0:00:00]} d6 {[%emt 0:00:30]} 3. d4 {[%emt 0:00:00]} cxd4 {[%emt 0:00:30]} 4. Nxd4 {[%emt 0:00:30]} Nf6 {[%emt 0:00:00]} 5. Nc3 {[%emt 0:00:00]} a6 {[%emt 0:00:00]} 6. a3 {[%emt 0:00:00]} e5 {[%emt 0:01:30]} 7. Nf5 {[%emt 0:00:00]} d5 {[%emt 0:03:30]} 8. Bg5 {[%emt 0:00:00]} d4 {[%emt 0:01:30]} 9. Bxf6 {[%emt 0:00:00]} gxf6 {[%emt 0:00:30]} 10. Nb1 {[%emt 0:00:00]} Bxf5 {[%emt 0:01:30]} 11. exf5 {[%emt 0:00:30]} Qd5 {[%emt 0:03:30]} 12. Qf3 {[%emt 0:02:30]} Qxf3 {[%emt 0:10:30]} 13. gxf3 {[%emt 0:00:00]} Bh6 {[%emt 0:01:30]} 14. Nd2 {[%emt 0:01:00]} Nd7 {[%emt 0:14:30]} 15. Ne4 {[%emt 0:01:30]} Ke7 {[%emt 0:00:30]} 16. Bd3 {[%emt 0:01:30]} Rhc8 {[%emt 0:00:30]} 17. c4 {[%emt 0:02:30]} Nc5 {[%emt 0:10:30]} 18. Nxc5 {[%emt 0:01:30]} Rxc5 {[%emt 0:00:00]} 19. b4 {[%emt 0:00:30]} Rc7 {[%emt 0:03:00]} 20. c5 {[%emt 0:00:30]} Rb8 {[%emt 0:07:30]} 21. Be4 {[%emt 0:03:30]} b6 {[%emt 0:02:30]} 22. c6 {[%emt 0:00:30]} d3 {[%emt 0:01:30]} 23. a4 {[%emt 0:04:30]} Rd8 {[%emt 0:01:30]} 24. b5 {[%emt 0:01:30]} a5 {[%emt 0:00:30]} 25. Ra3 {[%emt 0:00:30]} d2+ {[%emt 0:00:30]} 26. Ke2 {[%emt 0:00:30]} Rd4 {[%emt 0:00:30]} 27. Rha1 {[%emt 0:00:30]} Rc8 {[%emt 0:01:30]} 28. Rd3 {[%emt 0:02:30]} Rcd8 {[%emt 0:01:30]} 29. Raa3 {[%emt 0:02:30]} Rc4 {[%emt 0:05:30]} 30. c7 {[%emt 0:07:30]} Rc8 {[%emt 0:06:30]} 31. Bc6 {[%emt 0:01:30]} Rc1 {[%emt 0:04:35]} 32. Rd7+ {[%emt 0:01:30]} Kf8 {[%emt 0:00:04]} 33. f4 {[%emt 0:00:00]} Bxf4 {[%emt 0:06:34]} 34. Rad3 {[%emt 0:01:00]} Kg7 {[%emt 0:00:20]} 35. Kf3 {[%emt 0:02:30]} Rxc7 {[%emt 0:02:38]} 36. Rxc7 {[%emt 0:00:30]} Rc3 {[%emt 0:00:26]} 37. Rxc3 {[%emt 0:02:30]} d1=Q+ {[%emt 0:00:05]} 38. Kg2 {[%emt 0:00:00]} Qg4+ {[%emt 0:01:02]} 39. Kf1 {[%emt 0:03:00]} Qd1+ {[%emt 0:00:30]} 40. Kg2 {[%emt 0:00:30]} Qg4+ {[%emt 0:00:00]} 41. Kf1 {[%emt 0:00:30]} e4 {[%emt 0:00:00]} 42. Re7 {[%emt 0:03:30]} Qd1+ {[%emt 0:00:00]} 43. Kg2 {[%emt 0:00:00]} Qg4+ {[%emt 0:00:00]} 44. Kf1 {[%emt 0:06:00]} e3 {[%emt 0:00:27]} 45. fxe3 {[%emt 0:01:30]} Qd1+ {[%emt 0:00:14]} 46. Kf2 {[%emt 0:00:00]} Qd2+ {[%emt 0:01:34]} 47. Kf3 {[%emt 0:01:00]} Qxc3 {[%emt 0:00:41]} 48. Kxf4 {[%emt 0:00:00]} Qb4+ {[%emt 0:00:15]} 49. Re4 {[%emt 0:00:00]} Qd6+ {[%emt 0:00:00]} 50. Kf3 {[%emt 0:00:30]} Qxh2 {[%emt 0:00:09]} 51. Rg4+ {[%emt 0:01:30]} Kf8 {[%emt 0:01:34]} 52. Rd4 {[%emt 0:01:30]} h5 {[%emt 0:00:41]} 53. Rd7 {[%emt 0:02:30]} Qh3+ {[%emt 0:00:05]} 54. Ke2 {[%emt 0:00:00]} Qxf5 {[%emt 0:00:34]} 55. Rb7 {[%emt 0:00:00]} Qc5 {[%emt 0:03:28]} 56. e4 {[%emt 0:00:30]} f5 {[%emt 0:00:02]} 57. Bd5 {[%emt 0:01:30]} fxe4 {[%emt 0:01:06]} 58. Rxf7+ {[%emt 0:00:30]} Ke8 {[%emt 0:00:00]} 59. Rf5 {[%emt 0:00:30]} Qc2+ {[%emt 0:00:36]} 60. Ke3 {[%emt 0:00:00]} h4 {[%emt 0:03:23]} 61. Bxe4 {[%emt 0:01:00]} Qb3+ {[%emt 0:00:26]} 62. Kd4 {[%emt 0:10:30]} Qxa4+ {[%emt 0:00:19]} 63. Ke5 {[%emt 0:00:30]} Qxb5+ {[%emt 0:00:31]} 64. Kf6 {[%emt 0:00:30]} Qb4 {[%emt 0:01:07]} 65. Bd5 {[%emt 0:01:30]} Kd7 {[%emt 0:01:03]} 66. Ke5 {[%emt 0:00:30]} Qc3+ {[%emt 0:00:40]} 67. Ke4 {[%emt 0:00:00]} Kd6 {[%emt 0:00:00]} 0-1

[Event "4th Baskent University Open 2019"]
[Site "Ankara"]
[Date "2019.06.19"]
[Round "4"]
[White "Bagaturov, Giorgi"]
[Black "Guliev, Logman"]
[Result "1-0"]
[ECO "E06"]
[WhiteElo "2422"]
[BlackElo "2320"]
[Annotator "NA"]
[PlyCount "123"]
[EventDate "2019.06.18"]
[EventType "swiss"]
[EventCountry "TUR"]
[SourceTitle "playchess.com"]
[Source "ChessBase"]
[SourceQuality "1"]
[TimeControl "5400+30"]

1. c4 {[%emt 0:00:30]} e6 {[%emt 0:00:30]} 2. Nf3 {[%emt 0:00:30]} Nf6 {[%emt 0:00:30]} 3. g3 {[%emt 0:00:30]} d5 {[%emt 0:00:30]} 4. Bg2 {[%emt 0:00:30]} Be7 {[%emt 0:00:30]} 5. O-O {[%emt 0:00:30]} O-O {[%emt 0:03:30]} 6. d4 {[%emt 0:04:30]} c6 {[%emt 0:03:30]} 7. Qc2 {[%emt 0:00:30]} b6 {[%emt 0:08:30]} 8. b3 {[%emt 0:03:30]} a5 {[%emt 0:04:30]} 9. Rd1 {[%emt 0:03:30]} Na6 {[%emt 0:05:30]} 10. Nc3 {[%emt 0:04:30]} Bb7 {[%emt 0:02:30]} 11. Bb2 {[%emt 0:09:30]} Rc8 {[%emt 0:05:30]} 12. e4 {[%emt 0:02:30]} b5 {[%emt 0:03:30]} 13. e5 {[%emt 0:02:30]} Nd7 {[%emt 0:00:30]} 14. c5 {[%emt 0:06:30]} f6 {[%emt 0:02:30]} 15. exf6 {[%emt 0:01:30]} Bxf6 {[%emt 0:00:30]} 16. Ne2 {[%emt 0:07:30]} Qe8 {[%emt 0:00:30]} 17. Re1 {[%emt 0:08:30]} g5 {[%emt 0:06:30]} 18. h3 {[%emt 0:08:30]} Nb4 {[%emt 0:03:30]} 19. Qd2 {[%emt 0:03:30]} Qg6 {[%emt 0:00:30]} 20. Red1 {[%emt 0:00:30]} Rf7 {[%emt 0:05:30]} 21. a3 {[%emt 0:02:30]} Na6 {[%emt 0:00:30]} 22. Nc1 {[%emt 0:00:30]} Nc7 {[%emt 0:11:30]} 23. Nd3 {[%emt 0:01:30]} Ra8 {[%emt 0:00:30]} 24. Re1 {[%emt 0:04:30]} h6 {[%emt 0:00:30]} 25. Re3 {[%emt 0:05:17]} a4 {[%emt 0:01:30]} 26. b4 {[%emt 0:01:34]} Raf8 {[%emt 0:00:30]} 27. Rae1 {[%emt 0:00:49]} Bg7 {[%emt 0:00:00]} 28. Qe2 {[%emt 0:01:17]} Bc8 {[%emt 0:02:00]} 29. Nh2 {[%emt 0:01:32]} Bf6 {[%emt 0:04:30]} 30. Bf3 {[%emt 0:01:12]} Qg7 {[%emt 0:00:30]} 31. Bh5 {[%emt 0:03:41]} Re7 {[%emt 0:00:30]} 32. Ne5 {[%emt 0:00:22]} Bxe5 {[%emt 0:01:30]} 33. dxe5 {[%emt 0:00:03]} Qh7 {[%emt 0:02:30]} 34. Ng4 {[%emt 0:01:43]} Ne8 {[%emt 0:00:30]} 35. Bxe8 {[%emt 0:01:28]} Rexe8 {[%emt 0:00:00]} 36. Nf6+ {[%emt 0:00:30]} Nxf6 {[%emt 0:00:00]} 37. exf6 {[%emt 0:00:22]} Qg6 {[%emt 0:01:30]} 38. Be5 {[%emt 0:00:20]} Rd8 {[%emt 0:01:30]} 39. Rd1 {[%emt 0:01:38]} Bd7 {[%emt 0:00:30]} 40. Kg2 {[%emt 0:00:51]} Be8 {[%emt 0:00:30]} 41. Bd6 {[%emt 0:02:33]} Rxd6 {[%emt 0:01:46]} 42. cxd6 {[%emt 0:00:34]} Rxf6 {[%emt 0:00:02]} 43. Re5 {[%emt 0:00:00]} Qf7 {[%emt 0:02:23]} 44. Rd4 {[%emt 0:00:49]} Qd7 {[%emt 0:01:43]} 45. h4 {[%emt 0:01:06]} gxh4 {[%emt 0:00:11]} 46. Rxh4 {[%emt 0:00:54]} Qxd6 {[%emt 0:00:14]} 47. Qe3 {[%emt 0:00:24]} Kg7 {[%emt 0:00:57]} 48. Qa7+ {[%emt 0:01:13]} Bf7 {[%emt 0:00:28]} 49. Qd4 {[%emt 0:01:16]} Kf8 {[%emt 0:00:50]} 50. Reh5 {[%emt 0:01:09]} Ke7 {[%emt 0:03:38]} 51. Rxh6 {[%emt 0:00:27]} Rf5 {[%emt 0:01:32]} 52. Rh8 {[%emt 0:01:13]} e5 {[%emt 0:00:21]} 53. Qa7+ {[%emt 0:00:15]} Qd7 {[%emt 0:00:22]} 54. Qb8 {[%emt 0:01:14]} d4 {[%emt 0:00:27]} 55. Qf8+ {[%emt 0:00:22]} Ke6 {[%emt 0:00:37]} 56. R8h6+ {[%emt 0:00:37]} Rf6 {[%emt 0:00:25]} 57. Rxf6+ {[%emt 0:00:51]} Kxf6 {[%emt 0:00:01]} 58. Rh6+ {[%emt 0:00:00]} Kf5 {[%emt 0:00:37]} 59. Rd6 {[%emt 0:00:19]} Qe8 {[%emt 0:01:36]} 60. Qh6 {[%emt 0:00:30]} Bg8 {[%emt 0:06:19]} 61. Qf6+ {[%emt 0:00:26]} Kg4 {[%emt 0:01:01]} 62. f3+ {[%emt 0:00:07]} 1-0

[Event "4th Baskent University Open 2019"]
[Site "Ankara"]
[Date "2019.06.19"]
[Round "4"]
[White "Odeev, Handszar"]
[Black "Aydincelebi, Kagan"]
[Result "1-0"]
[ECO "B23"]
[WhiteElo "2386"]
[BlackElo "2258"]
[Annotator "NA"]
[PlyCount "61"]
[EventDate "2019.06.18"]
[EventType "swiss"]
[EventCountry "TUR"]
[SourceTitle "playchess.com"]
[Source "ChessBase"]
[SourceQuality "1"]
[TimeControl "5400+30"]

1. e4 {[%emt 0:00:30]} c5 {[%emt 0:00:30]} 2. Nc3 {[%emt 0:00:30]} Nc6 {[%emt 0:00:30]} 3. Nge2 {[%emt 0:05:30]} d6 {[%emt 0:01:30]} 4. h3 {[%emt 0:02:30]} e5 {[%emt 0:02:30]} 5. d3 {[%emt 0:01:30]} g6 {[%emt 0:00:30]} 6. Be3 {[%emt 0:00:30]} Bg7 {[%emt 0:00:30]} 7. Qd2 {[%emt 0:03:30]} h5 {[%emt 0:04:30]} 8. Nd5 {[%emt 0:05:30]} Be6 {[%emt 0:05:30]} 9. Nec3 {[%emt 0:03:30]} Nd4 {[%emt 0:09:30]} 10. Be2 {[%emt 0:02:30]} Qd7 {[%emt 0:02:30]} 11. O-O {[%emt 0:12:30]} Ne7 {[%emt 0:03:30]} 12. Nxe7 {[%emt 0:01:30]} Qxe7 {[%emt 0:12:30]} 13. f4 {[%emt 0:00:30]} exf4 {[%emt 0:00:30]} 14. Bxf4 {[%emt 0:00:30]} Be5 {[%emt 0:01:30]} 15. Rac1 {[%emt 0:17:30]} Qh4 {[%emt 0:13:30]} 16. Rf2 {[%emt 0:09:30]} f6 {[%emt 0:06:30]} 17. Rcf1 {[%emt 0:03:30]} g5 {[%emt 0:02:30]} 18. Bxe5 {[%emt 0:07:30]} fxe5 {[%emt 0:00:30]} 19. Bd1 {[%emt 0:02:59]} g4 {[%emt 0:02:30]} 20. Qe3 {[%emt 0:03:37]} gxh3 {[%emt 0:01:30]} 21. g3 {[%emt 0:00:16]} Qe7 {[%emt 0:00:30]} 22. Nd5 {[%emt 0:00:06]} Qg7 {[%emt 0:10:35]} 23. c3 {[%emt 0:11:14]} Nc6 {[%emt 0:00:30]} 24. Bxh5+ {[%emt 0:00:25]} Kd8 {[%emt 0:01:25]} 25. Rf6 {[%emt 0:03:29]} h2+ {[%emt 0:04:11]} 26. Kh1 {[%emt 0:00:08]} Rxh5 {[%emt 0:06:32]} 27. Rf8+ {[%emt 0:01:59]} Kd7 {[%emt 0:00:02]} 28. Nf6+ {[%emt 0:00:14]} Ke7 {[%emt 0:00:02]} 29. Rxa8 {[%emt 0:00:19]} Rh8 {[%emt 0:00:18]} 30. Rxh8 {[%emt 0:00:27]} Qxh8 {[%emt 0:00:03]} 31. Qg5 {[%emt 0:00:20]} 1-0

[Event "4th Baskent University Open 2019"]
[Site "Ankara"]
[Date "2019.06.19"]
[Round "4"]
[White "Gunduz, Umut Erdem"]
[Black "Mammadov, Zaur"]
[Result "0-1"]
[ECO "C01"]
[WhiteElo "2302"]
[BlackElo "2428"]
[Annotator "NA"]
[PlyCount "76"]
[EventDate "2019.06.18"]
[EventType "swiss"]
[EventCountry "TUR"]
[SourceTitle "playchess.com"]
[Source "ChessBase"]
[SourceQuality "1"]
[TimeControl "5400+30"]

1. e4 {[%emt 0:12:30]} e6 {[%emt 0:00:30]} 2. d4 {[%emt 0:00:30]} d5 {[%emt 0:00:30]} 3. Nc3 {[%emt 0:00:30]} Bb4 {[%emt 0:01:30]} 4. exd5 {[%emt 0:08:30]} exd5 {[%emt 0:00:30]} 5. Bd3 {[%emt 0:00:00]} Ne7 {[%emt 0:02:30]} 6. Nge2 {[%emt 0:10:00]} O-O {[%emt 0:00:30]} 7. a3 {[%emt 0:01:30]} Ba5 {[%emt 0:01:30]} 8. b4 {[%emt 0:02:30]} Bb6 {[%emt 0:00:30]} 9. Na4 {[%emt 0:02:30]} Bg4 {[%emt 0:00:00]} 10. f3 {[%emt 0:03:30]} Bf5 {[%emt 0:00:00]} 11. O-O {[%emt 0:02:30]} Re8 {[%emt 0:02:30]} 12. c3 {[%emt 0:15:30]} Bxd3 {[%emt 0:06:30]} 13. Qxd3 {[%emt 0:00:30]} Nd7 {[%emt 0:00:30]} 14. Bg5 {[%emt 0:05:30]} Ne5 {[%emt 0:00:30]} 15. Qc2 {[%emt 0:03:30]} Nc4 {[%emt 0:00:00]} 16. Nb2 {[%emt 0:02:30]} Nd6 {[%emt 0:03:00]} 17. Ng3 {[%emt 0:02:30]} Qd7 {[%emt 0:05:30]} 18. Rfe1 {[%emt 0:02:30]} Ng6 {[%emt 0:02:30]} 19. Be3 {[%emt 0:01:30]} a5 {[%emt 0:04:30]} 20. Bf2 {[%emt 0:01:30]} Rxe1+ {[%emt 0:01:30]} 21. Rxe1 {[%emt 0:00:30]} Qc6 {[%emt 0:00:30]} 22. Qd3 {[%emt 0:15:54]} Nf4 {[%emt 0:02:30]} 23. Qd2 {[%emt 0:00:10]} Ne6 {[%emt 0:00:00]} 24. f4 {[%emt 0:03:15]} axb4 {[%emt 0:01:00]} 25. axb4 {[%emt 0:00:33]} Ra2 {[%emt 0:03:30]} 26. Qc1 {[%emt 0:01:43]} Nb5 {[%emt 0:01:30]} 27. f5 {[%emt 0:01:07]} Nf8 {[%emt 0:00:30]} 28. Nd1 {[%emt 0:00:08]} Bxd4 {[%emt 0:03:30]} 29. Bxd4 {[%emt 0:00:48]} Nxd4 {[%emt 0:00:00]} 30. Qg5 {[%emt 0:00:20]} h6 {[%emt 0:06:00]} 31. Qd8 {[%emt 0:00:02]} Nb5 {[%emt 0:01:30]} 32. Re8 {[%emt 0:00:57]} Qd6 {[%emt 0:00:30]} 33. Qh4 {[%emt 0:00:31]} Ra1 {[%emt 0:01:30]} 34. Qg4 {[%emt 0:00:27]} Nxc3 {[%emt 0:00:30]} 35. Re1 {[%emt 0:00:31]} Qb6+ {[%emt 0:01:30]} 36. Kh1 {[%emt 0:00:01]} Qf2 {[%emt 0:00:30]} 37. Rf1 {[%emt 0:00:30]} Nxd1 {[%emt 0:00:00]} 38. Rxd1 {[%emt 0:00:31]} Qe1+ {[%emt 0:00:00]} 0-1

[Event "4th Baskent University Open 2019"]
[Site "Ankara"]
[Date "2019.06.19"]
[Round "4"]
[White "Guseynov, Alihan"]
[Black "Gokbulut, Julia"]
[Result "1-0"]
[ECO "E74"]
[WhiteElo "2274"]
[BlackElo "2058"]
[Annotator "NA"]
[PlyCount "73"]
[EventDate "2019.06.18"]
[EventType "swiss"]
[EventCountry "TUR"]
[SourceTitle "playchess.com"]
[Source "ChessBase"]
[SourceQuality "1"]
[TimeControl "5400+30"]

1. d4 {[%emt 0:00:30]} Nf6 {[%emt 0:00:30]} 2. c4 {[%emt 0:00:30]} g6 {[%emt 0:00:00]} 3. Nc3 {[%emt 0:00:30]} Bg7 {[%emt 0:00:00]} 4. e4 {[%emt 0:01:30]} d6 {[%emt 0:00:00]} 5. Be2 {[%emt 0:00:30]} O-O {[%emt 0:00:00]} 6. Bg5 {[%emt 0:00:00]} Nbd7 {[%emt 0:02:30]} 7. Qd2 {[%emt 0:00:00]} c5 {[%emt 0:00:30]} 8. d5 {[%emt 0:01:30]} Qa5 {[%emt 0:01:30]} 9. Nf3 {[%emt 0:03:30]} a6 {[%emt 0:03:30]} 10. O-O {[%emt 0:01:30]} Re8 {[%emt 0:06:30]} 11. a4 {[%emt 0:01:30]} Nf8 {[%emt 0:09:30]} 12. h3 {[%emt 0:06:30]} Bd7 {[%emt 0:02:30]} 13. e5 {[%emt 0:09:30]} dxe5 {[%emt 0:01:30]} 14. Nxe5 {[%emt 0:01:30]} Bf5 {[%emt 0:07:30]} 15. Rad1 {[%emt 0:14:30]} Rad8 {[%emt 0:04:30]} 16. Qe3 {[%emt 0:02:30]} Qb6 {[%emt 0:08:30]} 17. Rd2 {[%emt 0:20:30]} h5 {[%emt 0:09:30]} 18. Rfd1 {[%emt 0:01:30]} N6h7 {[%emt 0:11:30]} 19. Bh6 {[%emt 0:03:30]} Bxh6 {[%emt 0:02:30]} 20. Qxh6 {[%emt 0:00:30]} Qf6 {[%emt 0:01:30]} 21. Qe3 {[%emt 0:01:30]} h4 {[%emt 0:04:30]} 22. f4 {[%emt 0:02:30]} g5 {[%emt 0:05:25]} 23. Rf1 {[%emt 0:02:30]} Ng6 {[%emt 0:01:45]} 24. fxg5 {[%emt 0:04:36]} Nxg5 {[%emt 0:00:20]} 25. Ng4 {[%emt 0:05:15]} Bxg4 {[%emt 0:01:45]} 26. Rxf6 {[%emt 0:00:54]} exf6 {[%emt 0:00:05]} 27. Qxc5 {[%emt 0:00:23]} Bxe2 {[%emt 0:03:23]} 28. Rxe2 {[%emt 0:00:15]} Nf4 {[%emt 0:01:17]} 29. Rxe8+ {[%emt 0:04:57]} Rxe8 {[%emt 0:00:30]} 30. Qd4 {[%emt 0:00:42]} Nh5 {[%emt 0:08:24]} 31. Qxh4 {[%emt 0:01:08]} Ng7 {[%emt 0:00:04]} 32. Qf2 {[%emt 0:00:54]} f5 {[%emt 0:00:15]} 33. d6 {[%emt 0:02:08]} Ne4 {[%emt 0:00:33]} 34. Nxe4 {[%emt 0:00:48]} fxe4 {[%emt 0:00:08]} 35. Qh4 {[%emt 0:00:51]} Ne6 {[%emt 0:01:49]} 36. Qxe4 {[%emt 0:00:15]} Rd8 {[%emt 0:00:12]} 37. c5 {[%emt 0:01:08]} 1-0

[Event "4th Baskent University Open 2019"]
[Site "Ankara"]
[Date "2019.06.19"]
[Round "4"]
[White "Ozenir, Ekin Baris"]
[Black "Nikcevic, Nebojsa"]
[Result "0-1"]
[ECO "A45"]
[WhiteElo "2250"]
[BlackElo "2420"]
[Annotator "NA"]
[PlyCount "72"]
[EventDate "2019.06.18"]
[EventType "swiss"]
[EventCountry "TUR"]
[SourceTitle "playchess.com"]
[Source "ChessBase"]
[SourceQuality "1"]
[TimeControl "5400+30"]

1. d4 {[%emt 0:00:30]} Nf6 {[%emt 0:05:30]} 2. Bg5 {[%emt 0:00:30]} Ne4 {[%emt 0:00:30]} 3. h4 {[%emt 0:00:30]} c5 {[%emt 0:02:30]} 4. d5 {[%emt 0:01:30]} Nxg5 {[%emt 0:05:30]} 5. hxg5 {[%emt 0:00:30]} g6 {[%emt 0:00:30]} 6. c3 {[%emt 0:01:30]} e5 {[%emt 0:05:30]} 7. dxe6 {[%emt 0:08:30]} dxe6 {[%emt 0:01:30]} 8. Qc1 {[%emt 0:07:30]} Bd7 {[%emt 0:04:30]} 9. e4 {[%emt 0:10:30]} Bg7 {[%emt 0:05:30]} 10. Na3 {[%emt 0:04:30]} Bc6 {[%emt 0:07:30]} 11. Qe3 {[%emt 0:00:30]} Nd7 {[%emt 0:05:30]} 12. O-O-O {[%emt 0:09:30]} Qa5 {[%emt 0:02:30]} 13. Kb1 {[%emt 0:02:30]} Qa4 {[%emt 0:00:30]} 14. Re1 {[%emt 0:04:30]} b5 {[%emt 0:00:30]} 15. Nc2 {[%emt 0:07:30]} Rb8 {[%emt 0:02:30]} 16. f4 {[%emt 0:09:30]} O-O {[%emt 0:24:30]} 17. b3 {[%emt 0:11:57]} Qa5 {[%emt 0:00:00]} 18. e5 {[%emt 0:00:47]} Rfd8 {[%emt 0:03:00]} 19. Rh3 {[%emt 0:04:29]} Bd5 {[%emt 0:05:08]} 20. Ne2 {[%emt 0:04:09]} Qc7 {[%emt 0:00:26]} 21. Ng3 {[%emt 0:04:16]} c4 {[%emt 0:01:01]} 22. b4 {[%emt 0:01:07]} Nb6 {[%emt 0:00:43]} 23. Nd4 {[%emt 0:01:40]} a5 {[%emt 0:00:42]} 24. Nxb5 {[%emt 0:01:24]} Qd7 {[%emt 0:00:04]} 25. Nd4 {[%emt 0:01:36]} Na4 {[%emt 0:03:10]} 26. Nc2 {[%emt 0:00:42]} Bf8 {[%emt 0:00:29]} 27. a3 {[%emt 0:00:43]} Bc5 {[%emt 0:05:12]} 28. Ne4 {[%emt 0:00:27]} Bxe4 {[%emt 0:07:35]} 29. Qxe4 {[%emt 0:00:30]} Nxc3+ {[%emt 0:00:00]} 30. Rxc3 {[%emt 0:00:09]} axb4 {[%emt 0:00:04]} 31. Rxc4 {[%emt 0:01:23]} bxa3+ {[%emt 0:00:07]} 32. Nb4 {[%emt 0:00:38]} Qd2 {[%emt 0:00:34]} 33. Re2 {[%emt 0:00:53]} a2+ {[%emt 0:02:00]} 34. Ka1 {[%emt 0:00:55]} Qd1+ {[%emt 0:00:30]} 35. Kxa2 {[%emt 0:00:43]} Qa4+ {[%emt 0:00:57]} 36. Kb2 {[%emt 0:00:49]} Bxb4 {[%emt 0:00:33]} 0-1